[Event "1st Archibald 2019"]
[Site "Sochi"]
[Date "2019.05.18"]
[Round "8.2"]
[White "Volkov, Sergey"]
[Black "Stupak, Kirill"]
[Result "0-1"]
[ECO "E24"]
[WhiteElo "2572"]
[BlackElo "2551"]
[Annotator "RC"]
[PlyCount "126"]
[EventDate "2019.05.12"]
[EventType "swiss"]
[EventCountry "RUS"]
[SourceTitle "playchess.com"]
[Source "ChessBase"]
[SourceQuality "1"]
[TimeControl "5400+30"]

1. d4 {[%emt 0:00:00]} Nf6 {[%emt 0:09:54]} 2. c4 {[%emt 0:00:00]} e6 {[%emt 0:00:12]} 3. Nc3 {[%emt 0:00:00]} Bb4 {[%emt 0:00:57]} 4. f3 {[%emt 0:02:25]} c5 {[%emt 0:00:14]} 5. a3 {[%emt 0:00:16]} Bxc3+ {[%emt 0:00:04]} 6. bxc3 {[%emt 0:00:00]} d6 {[%emt 0:00:20]} 7. e4 {[%emt 0:00:11]} Nc6 {[%emt 0:00:03]} 8. Be3 {[%emt 0:00:28]} b6 {[%emt 0:05:52]} 9. Bd3 {[%emt 0:01:18]} Qc7 {[%emt 0:01:41]} 10. f4 {[%emt 0:04:44]} e5 {[%emt 0:07:11]} 11. Nf3 {[%emt 0:04:03]} Ng4 {[%emt 0:08:23]} 12. Bg1 {[%emt 0:06:48]} exf4 {[%emt 0:02:55]} 13. h3 {[%emt 0:00:10]} Ne3 {[%emt 0:10:49]} 14. Bxe3 {[%emt 0:03:06]} fxe3 {[%emt 0:01:07]} 15. O-O {[%emt 0:00:04]} f6 {[%emt 0:05:35]} 16. Re1 {[%emt 0:03:26]} Bd7 {[%emt 0:05:07]} 17. Rxe3 {[%emt 0:01:03]} O-O-O {[%emt 0:00:03]} 18. Qe2 {[%emt 0:02:34]} Kb8 {[%emt 0:04:37]} 19. Re1 {[%emt 0:13:36]} Rde8 {[%emt 0:00:45]} 20. e5 {[%emt 0:00:24]} dxe5 {[%emt 0:06:08]} 21. dxe5 {[%emt 0:00:27]} Nxe5 {[%emt 0:00:16]} 22. Nxe5 {[%emt 0:00:07]} fxe5 {[%emt 0:00:46]} 23. Be4 {[%emt 0:02:12]} Re7 {[%emt 0:06:15]} 24. Qd3 {[%emt 0:01:38]} g6 {[%emt 0:09:52]} 25. Qd5 {[%emt 0:01:30]} Kc8 {[%emt 0:00:00]} 26. Bf3 {[%emt 0:08:42]} Rhe8 {[%emt 0:02:29]} 27. R3e2 {[%emt 0:20:24]} Re6 {[%emt 0:03:47]} 28. Bg4 {[%emt 0:00:16]} Rd6 {[%emt 0:03:39]} 29. Qf7 {[%emt 0:03:01]} Rd8 {[%emt 0:00:26]} 30. Qf3 {[%emt 0:00:39]} Bxg4 {[%emt 0:01:35]} 31. Qxg4+ {[%emt 0:00:31]} Kb8 {[%emt 0:00:53]} 32. Rxe5 {[%emt 0:00:09]} Rd1 {[%emt 0:00:38]} 33. Qe4 {[%emt 0:06:32]} Rxe1+ {[%emt 0:00:11]} 34. Qxe1 {[%emt 0:00:07]} Rd1 {[%emt 0:00:00]} 35. Re8+ {[%emt 0:00:10]} Rd8 {[%emt 0:00:00]} 36. Re6 {[%emt 0:02:50]} Rd6 {[%emt 0:01:01]} 37. Re4 {[%emt 0:01:49]} Rd8 {[%emt 0:00:08]} 38. Qe3 {[%emt 0:07:37]} Rd1+ {[%emt 0:00:25]} 39. Kf2 {[%emt 0:00:02]} Rd7 {[%emt 0:01:25]} 40. Ke2 {[%emt 0:00:31]} Qd6 {[%emt 0:00:50]} 41. Re8+ {[%emt 0:04:24]} Kc7 {[%emt 0:00:18]} 42. Qe5 {[%emt 0:00:34]} Qxe5+ {[%emt 0:00:36]} 43. Rxe5 {[%emt 0:00:01]} Kb7 {[%emt 0:00:01]} 44. Rd5 {[%emt 0:00:15]} Re7+ {[%emt 0:03:17]} 45. Kd2 {[%emt 0:00:34]} Ka6 {[%emt 0:00:00]} 46. Kc2 {[%emt 0:00:41]} Re2+ {[%emt 0:00:59]} 47. Rd2 {[%emt 0:00:05]} Rxd2+ {[%emt 0:00:17]} 48. Kxd2 {[%emt 0:00:00]} Ka5 {[%emt 0:01:12]} 49. Kc2 {[%emt 0:00:05]} Ka4 {[%emt 0:00:10]} 50. Kb2 {[%emt 0:00:01]} g5 {[%emt 0:00:25]} 51. g3 {[%emt 0:01:05]} h5 {[%emt 0:00:27]} 52. h4 {[%emt 0:00:41]} g4 {[%emt 0:00:55]} 53. Ka2 {[%emt 0:00:04]} b5 {[%emt 0:00:30]} 54. cxb5 {[%emt 0:01:41]} Kxb5 {[%emt 0:00:38]} 55. Kb3 {[%emt 0:00:04]} c4+ {[%emt 0:00:00]} 56. Kc2 {[%emt 0:00:03]} Ka5 {[%emt 0:00:58]} 57. Kc1 {[%emt 0:01:02]} Ka4 {[%emt 0:00:24]} 58. Kb2 {[%emt 0:00:07]} a5 {[%emt 0:00:16]} 59. Ka2 {[%emt 0:01:52]} Kb5 {[%emt 0:00:00]} 60. Kb1 {[%emt 0:00:24]} Kc5 {[%emt 0:00:09]} 61. Kc2 {[%emt 0:00:04]} Kd5 {[%emt 0:00:01]} 62. Kd1 {[%emt 0:00:21]} Ke4 {[%emt 0:00:01]} 63. Ke2 {[%emt 0:00:12]} a4 {[%emt 0:00:00]} 0-1

[Event "1st Archibald 2019"]
[Site "Sochi"]
[Date "2019.05.18"]
[Round "8.7"]
[White "Martinovici, Ilie"]
[Black "Bocharov, Dmitry"]
[Result "0-1"]
[ECO "B07"]
[WhiteElo "2367"]
[BlackElo "2530"]
[Annotator "ChessBase"]
[PlyCount "68"]
[EventDate "2019.05.12"]
[EventType "swiss"]
[EventCountry "RUS"]
[SourceTitle "playchess.com"]
[Source "ChessBase"]
[SourceQuality "1"]
[TimeControl "5400+30"]

1. d4 {[%emt 0:00:00]} d6 {[%emt 0:03:54]} 2. e4 {[%emt 0:00:00]} Nf6 {[%emt 0:00:33]} 3. f3 {[%emt 0:00:03]} e5 {[%emt 0:02:29]} 4. d5 {[%emt 0:02:28]} Be7 {[%emt 0:00:22]} 5. Be3 {[%emt 0:01:25]} O-O {[%emt 0:03:53]} 6. c4 {[%emt 0:00:55]} a5 {[%emt 0:02:41]} 7. Nc3 {[%emt 0:00:00]} Na6 {[%emt 0:00:12]} 8. Qd2 {[%emt 0:01:12]} c6 {[%emt 0:01:17]} 9. Bd3 {[%emt 0:05:14]} cxd5 {[%emt 0:09:11]} 10. cxd5 {[%emt 0:00:10]} Nd7 {[%emt 0:00:04]} 11. Nh3 {[%emt 0:07:40]} Ndc5 {[%emt 0:04:19]} 12. Nf2 {[%emt 0:00:36]} Nxd3+ {[%emt 0:00:58]} 13. Nxd3 {[%emt 0:00:09]} Bd7 {[%emt 0:08:31]} 14. O-O {[%emt 0:01:41]} b5 {[%emt 0:03:21]} 15. a3 {[%emt 0:00:41]} Qb8 {[%emt 0:01:35]} 16. Na2 {[%emt 0:13:44]} f5 {[%emt 0:06:41]} 17. exf5 {[%emt 0:14:58]} Bxf5 {[%emt 0:00:54]} 18. Nf2 {[%emt 0:01:08]} Nc5 {[%emt 0:13:08]} 19. Bxc5 {[%emt 0:13:33]} dxc5 {[%emt 0:00:00]} 20. Nc3 {[%emt 0:00:47]} c4 {[%emt 0:01:54]} 21. Nce4 {[%emt 0:04:24]} Bd8 {[%emt 0:04:24]} 22. d6 {[%emt 0:05:14]} Bb6 {[%emt 0:01:02]} 23. Qd5+ {[%emt 0:01:04]} Kh8 {[%emt 0:00:12]} 24. Nc3 {[%emt 0:08:09]} b4 {[%emt 0:08:31]} 25. axb4 {[%emt 0:02:08]} axb4 {[%emt 0:01:24]} 26. Na4 {[%emt 0:04:38]} Bd4 {[%emt 0:01:52]} 27. d7 {[%emt 0:01:01]} Qc7 {[%emt 0:02:51]} 28. Nc3 {[%emt 0:01:13]} Rxa1 {[%emt 0:02:30]} 29. Rxa1 {[%emt 0:00:01]} Qxd7 {[%emt 0:03:23]} 30. Qxd7 {[%emt 0:01:19]} Bxd7 {[%emt 0:00:07]} 31. Nd5 {[%emt 0:00:02]} Rb8 {[%emt 0:03:58]} 32. Nxb4 {[%emt 0:00:16]} h6 {[%emt 0:00:18]} 33. Nc2 {[%emt 0:00:07]} Bxf2+ {[%emt 0:00:15]} 34. Kxf2 {[%emt 0:00:00]} Rxb2 {[%emt 0:00:06]} 0-1

[Event "1st Archibald 2019"]
[Site "Sochi"]
[Date "2019.05.18"]
[Round "8.9"]
[White "Tsydypov, Zhamsaran"]
[Black "Isanzhulov, Arystan"]
[Result "1-0"]
[ECO "A50"]
[WhiteElo "2546"]
[BlackElo "2254"]
[Annotator "RC"]
[PlyCount "124"]
[EventDate "2019.05.12"]
[EventType "swiss"]
[EventCountry "RUS"]
[SourceTitle "playchess.com"]
[Source "ChessBase"]
[SourceQuality "1"]
[TimeControl "5400+30"]

1. d4 {[%emt 0:05:31]} Nf6 {[%emt 0:00:00]} 2. c4 {[%emt 0:00:05]} b6 {[%emt 0:01:12]} 3. Nc3 {[%emt 0:00:48]} Bb7 {[%emt 0:00:00]} 4. Qc2 {[%emt 0:02:25]} d5 {[%emt 0:03:13]} 5. cxd5 {[%emt 0:00:19]} Nxd5 {[%emt 0:00:00]} 6. e4 {[%emt 0:00:43]} Nxc3 {[%emt 0:00:00]} 7. bxc3 {[%emt 0:00:03]} g6 {[%emt 0:01:12]} 8. Nf3 {[%emt 0:02:18]} Bg7 {[%emt 0:01:19]} 9. h4 {[%emt 0:04:08]} h6 {[%emt 0:00:00]} 10. Bc4 {[%emt 0:03:48]} Nd7 {[%emt 0:12:33]} 11. h5 {[%emt 0:04:06]} g5 {[%emt 0:08:45]} 12. e5 {[%emt 0:08:54]} e6 {[%emt 0:00:45]} 13. Bxe6 {[%emt 0:01:25]} Bxf3 {[%emt 0:06:01]} 14. Bxd7+ {[%emt 0:06:07]} Qxd7 {[%emt 0:00:22]} 15. gxf3 {[%emt 0:00:05]} Qc6 {[%emt 0:18:20]} 16. Rh3 {[%emt 0:04:55]} O-O-O {[%emt 0:00:20]} 17. Be3 {[%emt 0:02:04]} f6 {[%emt 0:05:52]} 18. exf6 {[%emt 0:02:33]} Bxf6 {[%emt 0:00:09]} 19. O-O-O {[%emt 0:00:08]} Rd5 {[%emt 0:01:51]} 20. f4 {[%emt 0:09:42]} g4 {[%emt 0:06:27]} 21. Rg3 {[%emt 0:02:08]} Rxh5 {[%emt 0:02:47]} 22. Rxg4 {[%emt 0:00:43]} Be7 {[%emt 0:00:39]} 23. Rg6 {[%emt 0:02:13]} Qb5 {[%emt 0:09:50]} 24. Rdg1 {[%emt 0:04:25]} Re8 {[%emt 0:07:43]} 25. Qb3 {[%emt 0:01:33]} Qd3 {[%emt 0:01:47]} 26. a4 {[%emt 0:04:48]} Bd6 {[%emt 0:04:42]} 27. R6g3 {[%emt 0:01:36]} Kb7 {[%emt 0:02:15]} 28. Kb2 {[%emt 0:04:14]} Rf5 {[%emt 0:01:20]} 29. Qc2 {[%emt 0:02:58]} Qxc2+ {[%emt 0:00:00]} 30. Kxc2 {[%emt 0:00:01]} Bxf4 {[%emt 0:00:49]} 31. Rf3 {[%emt 0:00:38]} Ref8 {[%emt 0:00:06]} 32. Rh1 {[%emt 0:00:21]} Bg5 {[%emt 0:01:02]} 33. Rxf5 {[%emt 0:00:00]} Rxf5 {[%emt 0:00:01]} 34. f4 {[%emt 0:00:19]} Be7 {[%emt 0:01:11]} 35. Rxh6 {[%emt 0:00:09]} Bd6 {[%emt 0:00:54]} 36. Rh4 {[%emt 0:01:25]} Kc6 {[%emt 0:01:16]} 37. Rg4 {[%emt 0:00:50]} a6 {[%emt 0:00:59]} 38. Rg5 {[%emt 0:01:20]} Rf6 {[%emt 0:00:00]} 39. f5 {[%emt 0:01:05]} Kd5 {[%emt 0:00:44]} 40. Kd3 {[%emt 0:00:36]} b5 {[%emt 0:00:00]} 41. axb5 {[%emt 0:00:03]} axb5 {[%emt 0:00:00]} 42. Rh5 {[%emt 0:01:52]} Rf7 {[%emt 0:03:10]} 43. Bf2 {[%emt 0:00:35]} c6 {[%emt 0:00:42]} 44. Bh4 {[%emt 0:01:11]} Bc7 {[%emt 0:00:33]} 45. Be7 {[%emt 0:00:52]} Rxe7 {[%emt 0:00:07]} 46. f6+ {[%emt 0:00:00]} Ke6 {[%emt 0:00:32]} 47. fxe7 {[%emt 0:00:33]} Kxe7 {[%emt 0:00:02]} 48. Kc2 {[%emt 0:01:55]} Ke6 {[%emt 0:00:31]} 49. Kd3 {[%emt 0:00:57]} Kd6 {[%emt 0:00:53]} 50. Rh7 {[%emt 0:00:19]} Ba5 {[%emt 0:00:42]} 51. Ra7 {[%emt 0:00:38]} Bb6 {[%emt 0:00:44]} 52. Ra6 {[%emt 0:00:30]} Bd8 {[%emt 0:00:34]} 53. Ke4 {[%emt 0:00:34]} Kc7 {[%emt 0:00:48]} 54. d5 {[%emt 0:00:28]} cxd5+ {[%emt 0:00:01]} 55. Kxd5 {[%emt 0:00:04]} Kb7 {[%emt 0:00:04]} 56. Ra3 {[%emt 0:00:06]} Be7 {[%emt 0:00:38]} 57. Rb3 {[%emt 0:00:06]} Kb6 {[%emt 0:00:34]} 58. c4 {[%emt 0:00:14]} b4 {[%emt 0:00:03]} 59. Re3 {[%emt 0:00:16]} Bg5 {[%emt 0:00:24]} 60. c5+ {[%emt 0:01:21]} Kb5 {[%emt 0:00:09]} 61. c6 {[%emt 0:00:37]} Bxe3 {[%emt 0:01:21]} 62. c7 {[%emt 0:00:10]} Kb6 {[%emt 0:00:03]} 1-0

[Event "1st Archibald 2019"]
[Site "Sochi"]
[Date "2019.05.18"]
[Round "8.10"]
[White "Pogosian, Manvel"]
[Black "Oganian, Miran"]
[Result "0-1"]
[ECO "A31"]
[WhiteElo "2388"]
[BlackElo "2415"]
[Annotator "NA"]
[PlyCount "66"]
[EventDate "2019.05.12"]
[EventType "swiss"]
[EventCountry "RUS"]
[SourceTitle "playchess.com"]
[Source "ChessBase"]
[SourceQuality "1"]
[TimeControl "5400+30"]

1. d4 {[%emt 0:00:00]} Nf6 {[%emt 0:00:00]} 2. c4 {[%emt 0:00:00]} c5 {[%emt 0:00:00]} 3. Nf3 {[%emt 0:01:08]} cxd4 {[%emt 0:00:29]} 4. Nxd4 {[%emt 0:00:41]} e5 {[%emt 0:00:11]} 5. Nb5 {[%emt 0:03:49]} d5 {[%emt 0:00:00]} 6. cxd5 {[%emt 0:00:54]} Bc5 {[%emt 0:00:00]} 7. e3 {[%emt 0:00:51]} O-O {[%emt 0:00:39]} 8. N5c3 {[%emt 0:01:32]} Qe7 {[%emt 0:00:46]} 9. a3 {[%emt 0:02:07] A31: Symmetrical English: 2 Nf3 Nf6 3 d4} e4 {[%emt 0:04:55]} 10. b4 {[%emt 0:01:24]} Bd6 {[%emt 0:00:54]} 11. Bb2 {[%emt 0:02:36]} Rd8 {[%emt 0:01:14]} 12. Be2 {[%emt 0:02:33]} a5 {[%emt 0:04:05]} 13. b5 {[%emt 0:19:21]} (13. Nd2 axb4 14. axb4 Rxa1 15. Qxa1 Bxb4 16. O-O Na6 17. Nc4 Bg4 18. Bxg4 Nxg4 {½-½ (49) Mchedlishvili,M (2636)-Bologan,V (2665) Melilla 2011}) 13... Nbd7 {[%emt 0:03:07]} 14. Nd2 {[%emt 0:01:41]} Nb6 {[%emt 0:01:30]} 15. Qc2 $146 {[%emt 0:06:42]} ({Predecessor:} 15. Nc4 Nxc4 16. Bxc4 Bf5 17. Ne2 Rac8 18. Qb3 Nd7 {½-½ (30) Arakeljan,A (2252)-Moiseev,V (2405) Tula 2018}) 15... Bf5 {[%emt 0:06:21]} 16. O-O {[%emt 0:08:13]} h5 {[%emt 0:05:02]} 17. Rfd1 {[%emt 0:05:36]} h4 {[%emt 0:04:24]} 18. Nf1 {[%emt 0:05:03]} Rac8 {[%emt 0:00:47]} 19. Qb3 {[%emt 0:02:21]} h3 {[%emt 0:01:23]} 20. Ng3 {[%emt 0:05:35]} Bd7 {[%emt 0:10:12]} 21. Bf1 {[%emt 0:03:41]} Bg4 $11 {[%emt 0:21:51]} 22. Re1 {[%emt 0:13:12]} hxg2 {[%emt 0:06:32]} 23. Bxg2 {[%emt 0:00:07]} Bxg3 {[%emt 0:08:55]} 24. hxg3 {[%emt 0:03:38]} Nc4 {[%emt 0:00:00]} 25. Rec1 {[%emt 0:02:17]} Nd2 {[%emt 0:03:49]} 26. Qa4 {[%emt 0:05:20]} Nf3+ {[%emt 0:02:50]} 27. Kf1 {[%emt 0:01:05]} Qe5 {[%emt 0:00:46]} 28. Nd1 {[%emt 0:01:38]} Qxd5 {[%emt 0:00:36]} 29. Bxf3 {[%emt 0:00:13]} Bxf3 {[%emt 0:01:00]} 30. Rxc8 {[%emt 0:00:30]} Rxc8 {[%emt 0:00:22]} 31. Bd4 {[%emt 0:01:08]} Qh5 {[%emt 0:03:04]} 32. Ke1 {[%emt 0:00:00]} Qh1+ {[%emt 0:00:04]} 33. Kd2 {[%emt 0:00:00]} Qf1 {[%emt 0:00:35]} 0-1

[Event "1st Archibald 2019"]
[Site "Sochi"]
[Date "2019.05.18"]
[Round "8.12"]
[White "Raja Harshit"]
[Black "Yandarbiev, Ruslan"]
[Result "1-0"]
[ECO "B07"]
[WhiteElo "2446"]
[BlackElo "2279"]
[Annotator "NA"]
[PlyCount "60"]
[EventDate "2019.05.12"]
[EventType "swiss"]
[EventCountry "RUS"]
[SourceTitle "playchess.com"]
[Source "ChessBase"]
[SourceQuality "1"]
[TimeControl "5400+30"]

1. e4 {[%emt 0:00:00]} d6 {[%emt 0:00:00]} 2. d4 {[%emt 0:00:10]} Nf6 {[%emt 0:00:00]} 3. Nc3 {[%emt 0:00:00]} g6 {[%emt 0:00:00]} 4. Bf4 {[%emt 0:00:38]} Bg7 {[%emt 0:00:43]} 5. Qd2 {[%emt 0:01:16]} h6 {[%emt 0:04:28]} 6. h4 {[%emt 0:03:48]} c6 {[%emt 0:00:16]} 7. O-O-O {[%emt 0:01:33]} b5 {[%emt 0:00:17]} 8. Qe1 {[%emt 0:11:00]} b4 {[%emt 0:03:17]} 9. Nb1 {[%emt 0:00:40]} a5 {[%emt 0:01:32]} 10. c4 {[%emt 0:08:37]} Qb6 {[%emt 0:15:05]} 11. e5 {[%emt 0:05:15]} dxe5 {[%emt 0:00:45]} 12. dxe5 {[%emt 0:10:29]} Nh7 {[%emt 0:03:32]} (12... Nh5 $5 {[%cal Rh5f4]} 13. Be3 c5 $11) 13. Be3 {[%emt 0:06:57]} Qc7 {[%emt 0:08:38]} 14. f4 {[%emt 0:01:08]} Nf8 {[%emt 0:05:13]} 15. Qf2 {[%emt 0:01:48]} Ra6 {[%emt 0:01:21]} 16. Nd2 {[%emt 0:02:58]} Bf5 {[%emt 0:05:11]} 17. h5 {[%emt 0:03:49]} gxh5 {[%emt 0:03:59]} 18. Be2 $16 {[%emt 0:00:54]} ({Resist} 18. Rxh5 $6 Bg4 $16) 18... a4 {[%emt 0:02:54]} 19. Ngf3 {[%emt 0:03:49]} b3 {[%emt 0:07:12]} 20. axb3 {[%emt 0:06:03]} axb3 {[%emt 0:04:24]} 21. Nxb3 {[%emt 0:00:04]} Ne6 {[%emt 0:00:30]} 22. Bd3 {[%emt 0:00:12]} Bg4 {[%emt 0:01:20]} 23. f5 {[%emt 0:04:07]} Ng5 {[%emt 0:00:40]} 24. Nxg5 {[%emt 0:01:46]} hxg5 {[%emt 0:03:20]} 25. f6 {[%emt 0:00:10]} Bh6 {[%emt 0:00:15]} 26. Be2 {[%emt 0:03:45]} Bxe2 {[%emt 0:19:33]} 27. Qxe2 {[%emt 0:00:00]} h4 {[%emt 0:00:30]} 28. e6 {[%emt 0:00:58]} exf6 {[%emt 0:01:32]} 29. Qh5 {[%emt 0:01:02]} Rh7 {[%emt 0:03:34]} 30. Rhe1 {[%emt 0:00:02]} Ra8 {[%emt 0:02:53]} 1-0

[Event "1st Archibald 2019"]
[Site "Sochi"]
[Date "2019.05.18"]
[Round "8.14"]
[White "Solozhenkin, Evgeniy"]
[Black "Gritsayeva, Oksana"]
[Result "1/2-1/2"]
[ECO "B33"]
[WhiteElo "2441"]
[BlackElo "2383"]
[Annotator "ChessBase"]
[PlyCount "56"]
[EventDate "2019.05.12"]
[EventType "swiss"]
[EventCountry "RUS"]
[SourceTitle "playchess.com"]
[Source "ChessBase"]
[SourceQuality "1"]
[TimeControl "5400+30"]

1. e4 {[%emt 0:00:00]} c5 {[%emt 0:00:00]} 2. Nf3 {[%emt 0:00:00]} Nc6 {[%emt 0:00:00]} 3. d4 {[%emt 0:00:00]} cxd4 {[%emt 0:00:00]} 4. Nxd4 {[%emt 0:00:00]} Nf6 {[%emt 0:00:00]} 5. Nc3 {[%emt 0:00:02]} e5 {[%emt 0:00:00]} 6. Ndb5 {[%emt 0:00:06]} d6 {[%emt 0:00:00]} 7. Bg5 {[%emt 0:02:29]} a6 {[%emt 0:00:00]} 8. Na3 {[%emt 0:00:05]} Be6 {[%emt 0:00:00]} 9. Nc4 {[%emt 0:00:12]} Rb8 {[%emt 0:00:00]} 10. Bxf6 {[%emt 0:05:27]} Qxf6 {[%emt 0:00:00]} 11. Nd5 {[%emt 0:02:38]} Bxd5 {[%emt 0:00:28]} 12. exd5 {[%emt 0:07:48]} Na7 {[%emt 0:01:51]} 13. Be2 {[%emt 0:05:53]} Qd8 {[%emt 0:02:45]} 14. a4 {[%emt 0:03:42]} Be7 {[%emt 0:00:18]} 15. O-O {[%emt 0:07:28]} O-O {[%emt 0:01:55]} 16. Kh1 {[%emt 0:02:37]} Nc8 {[%emt 0:03:00]} 17. a5 {[%emt 0:00:00]} Bg5 {[%emt 0:02:15]} 18. Ra3 {[%emt 0:08:08]} g6 {[%emt 0:04:36]} 19. Rb3 {[%emt 0:01:37]} Re8 {[%emt 0:03:58]} 20. Rb4 {[%emt 0:02:27]} Qc7 {[%emt 0:01:09]} 21. c3 {[%emt 0:01:05]} Qc5 {[%emt 0:02:37]} 22. Ra4 {[%emt 0:22:53]} Kg7 {[%emt 0:08:00]} 23. b4 {[%emt 0:00:49]} Qc7 {[%emt 0:00:46]} 24. Ra3 {[%emt 0:00:08]} Ne7 {[%emt 0:08:47]} 25. Nb6 {[%emt 0:00:58]} Nc8 {[%emt 0:01:21]} 26. Nc4 {[%emt 0:00:00]} Ne7 {[%emt 0:01:21]} 27. Nb6 {[%emt 0:00:11]} Nc8 {[%emt 0:01:14]} 28. Nc4 {[%emt 0:00:04]} Ne7 {[%emt 0:02:56]} 1/2-1/2

[Event "1st Archibald 2019"]
[Site "Sochi"]
[Date "2019.05.18"]
[Round "8.15"]
[White "Ufimtsev, Egor"]
[Black "Guseva, Marina"]
[Result "1/2-1/2"]
[ECO "D11"]
[WhiteElo "2101"]
[BlackElo "2402"]
[Annotator "NA"]
[PlyCount "63"]
[EventDate "2019.05.12"]
[EventType "swiss"]
[EventCountry "RUS"]
[SourceTitle "playchess.com"]
[Source "ChessBase"]
[SourceQuality "1"]
[TimeControl "5400+30"]

1. d4 {[%emt 0:00:00]} d5 {[%emt 0:00:00]} 2. c4 {[%emt 0:00:00]} c6 {[%emt 0:00:00]} 3. Nf3 {[%emt 0:00:00]} Nf6 {[%emt 0:00:00]} 4. Qc2 {[%emt 0:00:00]} dxc4 {[%emt 0:00:00]} 5. e4 {[%emt 0:00:00]} (5. Qxc4 Bg4 6. Nbd2 Nbd7 7. g3 e6 8. Bg2 Bd6 9. Qb3 Nb6 10. O-O O-O 11. Re1 a5 12. e4 a4 13. Qc3 Re8 14. a3 {1-0 (64) Yu,Y (2764)-Kovalenko,I (2657) St Petersburg 2018}) 5... b5 {[%emt 0:00:05]} 6. b3 {[%emt 0:00:22] D11: Slav Defence: 3 Nf3 sidelines and 3...Nf6 4 e3 Bg4} cxb3 {[%emt 0:00:00]} 7. axb3 {[%emt 0:00:03]} e6 {[%emt 0:00:00]} 8. Bd2 {[%emt 0:00:00]} a5 {[%emt 0:00:14]} 9. Bd3 {[%emt 0:01:16]} Be7 $146 {[%emt 0:00:00]} ({Predecessor:} 9... Bb7 10. O-O {0-1 (45) Svensson,M (2166)-Jogstad,M (2283) Sweden 2017}) 10. O-O {[%emt 0:02:33]} Bb7 {[%emt 0:00:03]} 11. Nc3 {[%emt 0:00:30]} Na6 {[%emt 0:01:20]} 12. e5 {[%emt 0:00:06]} Nb4 {[%emt 0:01:16]} 13. exf6 {[%emt 0:00:04]} Nxc2 {[%emt 0:00:03]} 14. fxe7 {[%emt 0:00:34]} Qxe7 {[%emt 0:00:07]} 15. Bxc2 {[%emt 0:00:00]} O-O {[%emt 0:13:01]} 16. Ne4 {[%emt 0:11:40]} c5 {[%emt 0:08:34]} 17. dxc5 {[%emt 0:01:49]} f5 {[%emt 0:09:55]} 18. Nd6 {[%emt 0:03:18]} Bxf3 {[%emt 0:01:29]} 19. gxf3 {[%emt 0:00:33]} Rf6 {[%emt 0:00:35]} 20. b4 {[%emt 0:23:31]} Rg6+ {[%emt 0:02:16]} 21. Kh1 {[%emt 0:00:32]} Qh4 {[%emt 0:00:00]} 22. Ra3 {[%emt 0:00:00]} Qd4 {[%emt 0:11:09]} 23. Rd3 {[%emt 0:08:54]} Qb2 {[%emt 0:03:10]} 24. Bd1 {[%emt 0:08:02]} axb4 {[%emt 0:12:31] [#]} 25. c6 $1 {[%emt 0:00:22]} Qb1 {[%emt 0:00:42]} 26. Rb3 $16 {[%emt 0:00:47]} Qa1 {[%emt 0:07:48]} 27. c7 {[%emt 0:00:39]} Qd4 {[%emt 0:04:52]} 28. Bxb4 {[%emt 0:08:45]} Rh6 {[%emt 0:05:37]} 29. Rc3 {[%emt 0:03:21]} Rxh2+ {[%emt 0:01:23]} 30. Kg1 {[%emt 0:04:06]} Rh1+ {[%emt 0:00:18]} 31. Kxh1 {[%emt 0:00:00]} Qh4+ {[%emt 0:00:03]} 32. Kg2 {[%emt 0:00:06]} 1/2-1/2

[Event "1st Archibald 2019"]
[Site "Sochi"]
[Date "2019.05.18"]
[Round "8.16"]
[White "Eraschenkov, Denis"]
[Black "Mikhailovsky, Vladimir"]
[Result "1-0"]
[ECO "B30"]
[WhiteElo "2391"]
[BlackElo "2180"]
[Annotator "NA"]
[PlyCount "77"]
[EventDate "2019.05.12"]
[EventType "swiss"]
[EventCountry "RUS"]
[SourceTitle "playchess.com"]
[Source "ChessBase"]
[SourceQuality "1"]
[TimeControl "5400+30"]

1. e4 {[%emt 0:00:00]} c5 {[%emt 0:01:04]} 2. Nf3 {[%emt 0:00:27]} Nc6 {[%emt 0:00:09]} 3. Nc3 {[%emt 0:00:21]} e5 {[%emt 0:00:32]} 4. Bc4 {[%emt 0:00:17]} Be7 {[%emt 0:00:22]} 5. d3 {[%emt 0:00:22]} d6 {[%emt 0:00:07]} 6. O-O {[%emt 0:03:31]} Nf6 {[%emt 0:00:57]} 7. Nh4 {[%emt 0:00:53]} h6 {[%emt 0:11:40]} 8. g3 {[%emt 0:15:20]} Bh3 {[%emt 0:06:37]} 9. Ng2 {[%emt 0:02:21]} g5 {[%emt 0:05:39]} 10. f3 {[%emt 0:03:41]} Qd7 {[%emt 0:14:04]} 11. Rf2 {[%emt 0:00:58]} Nd4 {[%emt 0:05:13]} 12. Nd5 {[%emt 0:05:22]} Nxd5 {[%emt 0:16:53]} 13. Bxd5 {[%emt 0:00:45]} Bxg2 {[%emt 0:11:02]} 14. Kxg2 {[%emt 0:01:49]} h5 {[%emt 0:00:59]} 15. c3 {[%emt 0:20:43]} Ne6 {[%emt 0:02:30]} 16. Rb1 {[%emt 0:03:11]} h4 {[%emt 0:06:26]} 17. g4 {[%emt 0:00:13]} Rc8 {[%emt 0:00:25]} 18. Be3 {[%emt 0:03:30]} b6 {[%emt 0:01:15]} 19. Qd2 {[%emt 0:03:27]} f6 {[%emt 0:01:56]} 20. b4 {[%emt 0:01:47]} Kf8 {[%emt 0:00:40]} 21. bxc5 {[%emt 0:05:58]} dxc5 {[%emt 0:00:13]} 22. Qb2 {[%emt 0:00:36]} Kg7 {[%emt 0:01:10]} 23. Qb3 {[%emt 0:00:27]} Nc7 {[%emt 0:00:24]} 24. Bc4 {[%emt 0:00:24]} Rhd8 {[%emt 0:00:33]} 25. Rd2 {[%emt 0:00:37]} Rb8 {[%emt 0:00:17]} 26. d4 {[%emt 0:04:20]} exd4 {[%emt 0:05:13]} 27. cxd4 {[%emt 0:00:06]} Qc6 {[%emt 0:00:19]} 28. d5 {[%emt 0:10:52]} Qd7 {[%emt 0:00:04]} 29. Qc3 {[%emt 0:00:48]} Kg6 {[%emt 0:02:42]} 30. e5 {[%emt 0:01:15]} fxe5 {[%emt 0:00:08]} 31. d6 {[%emt 0:00:58]} Bxd6 {[%emt 0:00:49]} 32. Rbd1 {[%emt 0:00:44]} Qe7 {[%emt 0:00:25]} 33. Qd3+ {[%emt 0:00:54]} Kh6 {[%emt 0:02:41]} 34. Qf5 {[%emt 0:00:51]} Ne8 {[%emt 0:00:54]} 35. Bf7 {[%emt 0:01:06]} Qf6 {[%emt 0:00:27]} 36. Rxd6 {[%emt 0:00:22]} Rxd6 {[%emt 0:00:07]} 37. Rxd6 {[%emt 0:00:07]} Qxd6 {[%emt 0:00:08]} 38. Qxg5+ {[%emt 0:00:07]} Kh7 {[%emt 0:00:01]} 39. Qg8# {[%emt 0:00:09]} 1-0